[Event "Live Chess"]
[Site "Chess.com"]
[Date "2024.06.01"]
[Round "-"]
[White "NeilDruggan73"]
[Black "booktrunk"]
[Result "1-0"]
[WhiteElo "1750"]
[BlackElo "1387"]
[TimeControl "300"]
[EndTime "10:08:40 PDT"]
[Termination "NeilDruggan73 won by resignation"]

1. d4 {[%clk 0:04:56.6]} 1... e6 {[%clk 0:04:56.2]} 2. Nf3 {[%clk 0:04:50.7]}
2... b6 {[%clk 0:04:53.2]} 3. Bg5 {[%clk 0:04:49.8]} 3... Be7 {[%clk 0:04:44.6]}
4. h4 {[%clk 0:04:37]} 4... Bxg5 {[%clk 0:04:41.9]} 5. hxg5 {[%clk 0:04:35.4]}
5... Nc6 {[%clk 0:04:39]} 6. g6 {[%clk 0:04:32.3]} 6... Nh6 {[%clk 0:04:31.5]}
7. gxf7+ {[%clk 0:04:20.8]} 7... Nxf7 {[%clk 0:04:26.2]} 8. e3 {[%clk
0:04:18.2]} 8... Bb7 {[%clk 0:04:18.8]} 9. c3 {[%clk 0:04:16.4]} 9... Ne7 {[%clk
0:04:17.1]} 10. Bd3 {[%clk 0:04:15.7]} 10... h6 {[%clk 0:04:13.3]} 11. Nbd2
{[%clk 0:04:10.3]} 11... Nd5 {[%clk 0:04:10.3]} 12. a3 {[%clk 0:04:06.7]} 12...
Nf6 {[%clk 0:03:55.3]} 13. Bg6 {[%clk 0:04:04.6]} 13... Qe7 {[%clk 0:03:48.7]}
14. Ne5 {[%clk 0:04:02.7]} 14... Rf8 {[%clk 0:03:36.4]} 15. Qa4 {[%clk
0:03:48.5]} 15... Kd8 {[%clk 0:03:23.9]} 16. Nxf7+ {[%clk 0:03:33.5]} 16... Rxf7
{[%clk 0:03:22.7]} 17. Bxf7 {[%clk 0:03:31.4]} 17... Qxf7 {[%clk 0:03:22.6]} 18.
f3 {[%clk 0:03:26.8]} 18... Nd5 {[%clk 0:03:18.7]} 19. Kf2 {[%clk 0:03:19.3]}
19... Qg6 {[%clk 0:03:12]} 20. Qd1 {[%clk 0:03:02.6]} 20... Qd3 {[%clk
0:03:08.5]} 21. Re1 {[%clk 0:02:54.6]} 21... a6 {[%clk 0:02:53.8]} 22. c4 {[%clk
0:02:53.2]} 22... Nf6 {[%clk 0:02:50.1]} 23. Ne4 {[%clk 0:02:52.1]} 23... Qxd1
{[%clk 0:02:43.6]} 24. Raxd1 {[%clk 0:02:48.1]} 24... Nxe4+ {[%clk 0:02:43.5]}
25. fxe4 {[%clk 0:02:46.8]} 25... Bxe4 {[%clk 0:02:42]} 26. Kg3 {[%clk
0:02:37.9]} 26... Ke7 {[%clk 0:02:40.5]} 27. Rf1 {[%clk 0:02:36.4]} 27... Rg8
{[%clk 0:02:32.7]} 28. Rf4 {[%clk 0:02:34.9]} 28... Bg6 {[%clk 0:02:20.1]} 29.
b4 {[%clk 0:02:19.5]} 29... Bc2 {[%clk 0:02:12.3]} 30. Rdf1 {[%clk 0:02:14]}
30... Bg6 {[%clk 0:02:08.6]} 31. e4 {[%clk 0:02:05.6]} 31... Ra8 {[%clk
0:01:48.2]} 32. c5 {[%clk 0:01:56.4]} 32... bxc5 {[%clk 0:01:45.7]} 33. bxc5
{[%clk 0:01:51.7]} 33... Re8 {[%clk 0:01:40.3]} 34. d5 {[%clk 0:01:50.2]} 34...
exd5 {[%clk 0:01:37.4]} 35. exd5 {[%clk 0:01:47.9]} 35... Kd8 {[%clk 0:01:34.5]}
36. Rf8 {[%clk 0:01:46.5]} 36... Bd3 {[%clk 0:01:30.5]} 37. Rxe8+ {[%clk
0:01:42.9]} 37... Kxe8 {[%clk 0:01:28.4]} 38. Re1+ {[%clk 0:01:39.2]} 38... Kf7
{[%clk 0:01:26.3]} 39. d6 {[%clk 0:01:35.4]} 39... cxd6 {[%clk 0:01:24.1]} 40.
cxd6 {[%clk 0:01:34.2]} 40... g6 {[%clk 0:01:21.9]} 41. Re7+ {[%clk 0:01:31.4]}
41... Kf8 {[%clk 0:01:20.6]} 42. Rxd7 {[%clk 0:01:30.3]} 42... Bb5 {[%clk
0:01:19.1]} 43. Ra7 {[%clk 0:01:22.6]} 43... h5 {[%clk 0:01:04.1]} 44. Kf4
{[%clk 0:01:21.2]} 44... Bc6 {[%clk 0:01:01.4]} 45. g3 {[%clk 0:01:16.1]} 45...
Bb5 {[%clk 0:00:57.5]} 46. Kg5 {[%clk 0:01:14.1]} 46... Bd3 {[%clk 0:00:54.7]}
47. Kf6 {[%clk 0:01:12.5]} 47... Ke8 {[%clk 0:00:51]} 48. Ke6 {[%clk 0:00:59.8]}
48... Bc4+ {[%clk 0:00:46.6]} 49. Ke5 {[%clk 0:00:55.3]} 49... Bd3 {[%clk
0:00:44.7]} 50. Kd4 {[%clk 0:00:54.2]} 50... Bf5 {[%clk 0:00:42.2]} 51. Rxa6
{[%clk 0:00:50.5]} 51... Bc8 {[%clk 0:00:40.5]} 52. Ra7 {[%clk 0:00:47.9]} 52...
Kd8 {[%clk 0:00:38.2]} 53. Ke5 {[%clk 0:00:45.4]} 53... Bf5 {[%clk 0:00:35.9]}
54. Kf6 {[%clk 0:00:39.4]} 54... Be4 {[%clk 0:00:32.9]} 55. a4 {[%clk
0:00:36.7]} 55... Bd3 {[%clk 0:00:29.7]} 56. a5 {[%clk 0:00:35.4]} 56... Be4
{[%clk 0:00:27.5]} 57. Ke5 {[%clk 0:00:34.2]} 57... Bc6 {[%clk 0:00:24.2]} 58.
Ke6 {[%clk 0:00:29.4]} 58... Be4 {[%clk 0:00:23.7]} 59. Rg7 {[%clk 0:00:23.4]}
59... Bc6 {[%clk 0:00:19.7]} 60. Rg8+ {[%clk 0:00:20.6]} 60... Be8 {[%clk
0:00:18.3]} 61. d7 {[%clk 0:00:19.2]} 1-0

[Event "Live Chess"]
[Site "Chess.com"]
[Date "2024.06.01"]
[Round "-"]
[White "degringolade64"]
[Black "Pizzaman313"]
[Result "1-0"]
[WhiteElo "2041"]
[BlackElo "1211"]
[TimeControl "300"]
[EndTime "10:08:41 PDT"]
[Termination "degringolade64 won by resignation"]

1. e4 {[%clk 0:04:57.5]} 1... e5 {[%clk 0:04:58.5]} 2. Nf3 {[%clk 0:04:56.8]}
2... Nc6 {[%clk 0:04:55.7]} 3. Bc4 {[%clk 0:04:55.7]} 3... Bc5 {[%clk
0:04:53.2]} 4. b4 {[%clk 0:04:54]} 4... Bxb4 {[%clk 0:04:51.7]} 5. c3 {[%clk
0:04:53.3]} 5... Be7 {[%clk 0:04:48.8]} 6. d4 {[%clk 0:04:51.6]} 6... exd4
{[%clk 0:04:47.2]} 7. Qb3 {[%clk 0:04:48.6]} 7... Kf8 {[%clk 0:04:16.6]} 8. Bxf7
{[%clk 0:04:42.5]} 8... Na5 {[%clk 0:04:14.5]} 9. Qa4 {[%clk 0:04:38.5]} 9...
Kxf7 {[%clk 0:04:07.7]} 10. Qxa5 {[%clk 0:04:36.8]} 10... dxc3 {[%clk
0:03:48.1]} 11. Nxc3 {[%clk 0:04:23.9]} 11... Nf6 {[%clk 0:03:37.8]} 12. e5
{[%clk 0:04:18.9]} 12... Ne8 {[%clk 0:03:34.8]} 13. Qd5+ {[%clk 0:04:15.5]}
13... Kf8 {[%clk 0:03:32.6]} 14. O-O {[%clk 0:04:11.6]} 14... h6 {[%clk
0:03:29.3]} 15. Re1 {[%clk 0:04:00.2]} 15... c6 {[%clk 0:03:26.1]} 16. Qe4
{[%clk 0:03:57.8]} 16... d5 {[%clk 0:03:22.7]} 17. exd6 {[%clk 0:03:49]} 17...
Qxd6 {[%clk 0:03:14.4]} 18. Bf4 {[%clk 0:03:28.7]} 18... Qa3 {[%clk 0:02:40]}
19. Rac1 {[%clk 0:03:06]} 19... Nf6 {[%clk 0:02:37.2]} 20. Qg6 {[%clk
0:02:58.6]} 20... Bb4 {[%clk 0:02:14.9]} 21. Ne4 {[%clk 0:02:35.6]} 21... Nxe4
{[%clk 0:01:43.1]} 22. Rxe4 {[%clk 0:02:31.1]} 22... Bd7 {[%clk 0:01:36.3]} 23.
Rxb4 {[%clk 0:02:24.9]} 23... Qxb4 {[%clk 0:01:25.8]} 24. Bd6+ {[%clk
0:02:23.1]} 24... Qxd6 {[%clk 0:01:25.2]} 25. Qxd6+ {[%clk 0:02:22.3]} 1-0

[Event "Live Chess"]
[Site "Chess.com"]
[Date "2024.06.01"]
[Round "-"]
[White "Velocity"]
[Black "TheSmoulderingMaster"]
[Result "1-0"]
[WhiteElo "1721"]
[BlackElo "1739"]
[TimeControl "300"]
[EndTime "10:08:46 PDT"]
[Termination "Velocity won by resignation"]

1. e4 {[%clk 0:04:59.2]} 1... c5 {[%clk 0:04:58.5]} 2. Nf3 {[%clk 0:04:58.4]}
2... d6 {[%clk 0:04:57.6]} 3. d4 {[%clk 0:04:57.8]} 3... cxd4 {[%clk 0:04:57.1]}
4. Nxd4 {[%clk 0:04:57.7]} 4... Nf6 {[%clk 0:04:56.5]} 5. Nc3 {[%clk 0:04:57.1]}
5... g6 {[%clk 0:04:56]} 6. Be3 {[%clk 0:04:55.2]} 6... Bg7 {[%clk 0:04:55.2]}
7. f3 {[%clk 0:04:54.7]} 7... O-O {[%clk 0:04:54.4]} 8. Qd2 {[%clk 0:04:53.5]}
8... Nc6 {[%clk 0:04:53.7]} 9. Bc4 {[%clk 0:04:52.3]} 9... Ne5 {[%clk
0:04:52.5]} 10. Bb3 {[%clk 0:04:50.9]} 10... Bd7 {[%clk 0:04:51.8]} 11. O-O-O
{[%clk 0:04:49.8]} 11... Qa5 {[%clk 0:04:50.9]} 12. Kb1 {[%clk 0:04:46.9]} 12...
Rfc8 {[%clk 0:04:49.8]} 13. Nd5 {[%clk 0:04:43]} 13... Qd8 {[%clk 0:04:47.7]}
14. Nxf6+ {[%clk 0:04:40.8]} 14... Bxf6 {[%clk 0:04:46.7]} 15. g4 {[%clk
0:04:38.8]} 15... Nc4 {[%clk 0:04:44.3]} 16. Bxc4 {[%clk 0:04:37]} 16... Rxc4
{[%clk 0:04:42.7]} 17. h4 {[%clk 0:04:31.5]} 17... Rac8 {[%clk 0:04:40.3]} 18.
c3 {[%clk 0:04:26.7]} 18... Qa5 {[%clk 0:04:34.6]} 19. g5 {[%clk 0:04:18]} 19...
Bg7 {[%clk 0:04:32.8]} 20. h5 {[%clk 0:04:16.8]} 20... b5 {[%clk 0:04:30.2]} 21.
hxg6 {[%clk 0:04:14.7]} 21... fxg6 {[%clk 0:04:28.4]} 22. f4 {[%clk 0:04:14]}
22... b4 {[%clk 0:04:24]} 23. cxb4 {[%clk 0:04:00.8]} 23... Rxb4 {[%clk
0:04:21.7]} 24. a3 {[%clk 0:03:46.3]} 24... Qxa3 {[%clk 0:04:14.4]} 25. f5
{[%clk 0:03:30.4]} 25... Bxd4 {[%clk 0:04:10.9]} 26. Bxd4 {[%clk 0:03:28.8]}
26... Rcb8 {[%clk 0:04:04.5]} 27. fxg6 {[%clk 0:03:20.8]} 27... hxg6 {[%clk
0:03:45.4]} 28. Rh8+ {[%clk 0:03:16.5]} 28... Kf7 {[%clk 0:03:44.5]} 29. Rf1+
{[%clk 0:02:53.5]} 29... Bf5 {[%clk 0:03:43.3]} 30. Rxb8 {[%clk 0:02:45.6]}
30... Rxb8 {[%clk 0:03:37.9]} 31. exf5 {[%clk 0:02:44.6]} 31... gxf5 {[%clk
0:03:36.9]} 32. Rxf5+ {[%clk 0:02:42.7]} 32... Kg6 {[%clk 0:03:36]} 33. Qc2
{[%clk 0:02:34.3]} 33... Kh7 {[%clk 0:03:23.1]} 34. Rf7+ {[%clk 0:02:22.8]} 1-0

[Event "Live Chess"]
[Site "Chess.com"]
[Date "2024.06.01"]
[Round "-"]
[White "Enhard"]
[Black "MellowAesthetic"]
[Result "0-1"]
[WhiteElo "1424"]
[BlackElo "2068"]
[TimeControl "300"]
[EndTime "10:08:53 PDT"]
[Termination "MellowAesthetic won by resignation"]

1. d4 {[%clk 0:04:55]} 1... Nf6 {[%clk 0:04:58]} 2. Bg5 {[%clk 0:04:52.8]} 2...
Ne4 {[%clk 0:04:52.5]} 3. Bf4 {[%clk 0:04:51.7]} 3... c5 {[%clk 0:04:47.9]} 4.
d5 {[%clk 0:04:48.7]} 4... Qb6 {[%clk 0:04:46.6]} 5. f3 {[%clk 0:04:34.8]} 5...
Qxb2 {[%clk 0:04:30.8]} 6. Nd2 {[%clk 0:04:26.7]} 6... Nc3 {[%clk 0:04:14.6]} 7.
Qc1 {[%clk 0:04:22.9]} 7... Qxc1+ {[%clk 0:04:13]} 8. Rxc1 {[%clk 0:04:21.7]}
8... Nxd5 {[%clk 0:04:12.3]} 9. Bg3 {[%clk 0:04:19.2]} 9... Nc6 {[%clk 0:04:07]}
10. Nc4 {[%clk 0:04:17.3]} 10... b5 {[%clk 0:04:01.9]} 11. e4 {[%clk 0:04:11.4]}
11... Nc3 {[%clk 0:03:44.4]} 12. Ne3 {[%clk 0:03:59.9]} 12... e6 {[%clk
0:03:28.3]} 13. Ne2 {[%clk 0:03:48.8]} 13... Nxa2 {[%clk 0:03:17.3]} 14. Ra1
{[%clk 0:03:46.4]} 14... Nab4 {[%clk 0:03:16.3]} 15. Nc3 {[%clk 0:03:44.5]}
15... Nd4 {[%clk 0:03:11.8]} 16. Nxb5 {[%clk 0:03:37.1]} 16... Ndxc2+ {[%clk
0:02:41.4]} 17. Nxc2 {[%clk 0:03:35.4]} 17... Nxc2+ {[%clk 0:02:40.2]} 18. Kd1
{[%clk 0:03:34.8]} 18... Nxa1 {[%clk 0:02:39.8]} 19. Nc7+ {[%clk 0:03:33.2]}
19... Kd8 {[%clk 0:02:39.4]} 20. Nxa8 {[%clk 0:03:31.7]} 20... d6 {[%clk
0:02:35.3]} 21. Bb5 {[%clk 0:03:20.7]} 21... Bb7 {[%clk 0:02:32.7]} 22. Kd2
{[%clk 0:03:11]} 22... Nb3+ {[%clk 0:02:29.7]} 23. Kc3 {[%clk 0:03:06.2]} 23...
Nd4 {[%clk 0:02:27.2]} 24. Bf2 {[%clk 0:02:56.5]} 24... Nxb5+ {[%clk 0:02:24.8]}
0-1

[Event "Live Chess"]
[Site "Chess.com"]
[Date "2024.06.01"]
[Round "-"]
[White "Cruiseylee78"]
[Black "KeithArkell"]
[Result "0-1"]
[WhiteElo "1652"]
[BlackElo "2516"]
[TimeControl "300"]
[EndTime "10:08:57 PDT"]
[Termination "KeithArkell won by resignation"]

1. d4 {[%clk 0:04:59.3]} 1... e6 {[%clk 0:04:58.9]} 2. Bf4 {[%clk 0:04:54]} 2...
Nf6 {[%clk 0:04:56.6]} 3. e3 {[%clk 0:04:43.7]} 3... c5 {[%clk 0:04:55.8]} 4.
Nf3 {[%clk 0:04:40.4]} 4... cxd4 {[%clk 0:04:55.1]} 5. exd4 {[%clk 0:04:39.1]}
5... Be7 {[%clk 0:04:54.7]} 6. Bd3 {[%clk 0:04:38.3]} 6... b6 {[%clk 0:04:54.2]}
7. c3 {[%clk 0:04:37.7]} 7... Ba6 {[%clk 0:04:53.2]} 8. Bxa6 {[%clk 0:04:16.8]}
8... Nxa6 {[%clk 0:04:51.6]} 9. Qc2 {[%clk 0:04:16.7]} 9... Nc7 {[%clk
0:04:50.2]} 10. Nbd2 {[%clk 0:04:15.7]} 10... d6 {[%clk 0:04:49.5]} 11. O-O-O
{[%clk 0:04:14.8]} 11... b5 {[%clk 0:04:48.9]} 12. Kb1 {[%clk 0:04:11.6]} 12...
Ncd5 {[%clk 0:04:48.1]} 13. Bg3 {[%clk 0:04:09]} 13... O-O {[%clk 0:04:46.4]}
14. h4 {[%clk 0:04:08.3]} 14... Qa5 {[%clk 0:04:41.5]} 15. h5 {[%clk 0:03:45.3]}
15... Rfc8 {[%clk 0:04:38.6]} 16. Qb3 {[%clk 0:03:40.4]} 16... h6 {[%clk
0:04:28.9]} 17. Bh4 {[%clk 0:03:38.8]} 17... Rc6 {[%clk 0:04:22.5]} 18. Rhg1
{[%clk 0:03:36.9]} 18... Rac8 {[%clk 0:04:21.3]} 19. Bxf6 {[%clk 0:03:09.5]}
19... Bxf6 {[%clk 0:04:09.8]} 20. Rc1 {[%clk 0:03:07.5]} 20... Nf4 {[%clk
0:04:02]} 21. Qd1 {[%clk 0:02:50.6]} 21... Nd3 {[%clk 0:03:58.1]} 22. Rc2 {[%clk
0:02:44.2]} 22... b4 {[%clk 0:03:47.1]} 23. c4 {[%clk 0:02:41.6]} 23... Qa6
{[%clk 0:03:32.2]} 24. Ne4 {[%clk 0:02:36.7]} 24... b3 {[%clk 0:03:30.6]} 25.
Nxf6+ {[%clk 0:02:35.1]} 25... gxf6 {[%clk 0:03:30]} 26. axb3 {[%clk 0:02:30.8]}
26... Nb4 {[%clk 0:03:28.9]} 27. Kc1 {[%clk 0:02:25.3]} 27... Nxc2 {[%clk
0:03:23]} 28. Qxc2 {[%clk 0:02:25.2]} 28... Rxc4 {[%clk 0:03:20.9]} 29. Qxc4
{[%clk 0:02:10.6]} 29... Rxc4+ {[%clk 0:03:19.2]} 30. bxc4 {[%clk 0:02:10.3]}
30... Qxc4+ {[%clk 0:03:17.8]} 31. Kb1 {[%clk 0:02:04.3]} 31... Qe2 {[%clk
0:03:16]} 32. Re1 {[%clk 0:01:54.6]} 32... Qxf2 {[%clk 0:03:14.6]} 33. d5 {[%clk
0:01:47.7]} 33... e5 {[%clk 0:03:13]} 34. b4 {[%clk 0:01:42.1]} 34... Qb6 {[%clk
0:03:10.6]} 0-1

[Event "Live Chess"]
[Site "Chess.com"]
[Date "2024.06.01"]
[Round "-"]
[White "Pedrada88"]
[Black "SavagePawn7"]
[Result "1-0"]
[WhiteElo "2552"]
[BlackElo "685"]
[TimeControl "300"]
[EndTime "10:09:00 PDT"]
[Termination "Pedrada88 won by checkmate"]

1. e4 {[%clk 0:04:58.4]} 1... d5 {[%clk 0:04:54.6]} 2. exd5 {[%clk 0:04:57.4]}
2... Nf6 {[%clk 0:04:53.2]} 3. d4 {[%clk 0:04:56.2]} 3... Nxd5 {[%clk
0:04:51.5]} 4. Nf3 {[%clk 0:04:55.8]} 4... Nc6 {[%clk 0:04:49.4]} 5. c4 {[%clk
0:04:55.3]} 5... Nf6 {[%clk 0:04:47.7]} 6. d5 {[%clk 0:04:54.8]} 6... Nb8 {[%clk
0:04:40.3]} 7. Nc3 {[%clk 0:04:53.1]} 7... e6 {[%clk 0:04:34.3]} 8. Bf4 {[%clk
0:04:50.4]} 8... exd5 {[%clk 0:04:29.5]} 9. cxd5 {[%clk 0:04:50.3]} 9... Bb4
{[%clk 0:04:22.8]} 10. Bb5+ {[%clk 0:04:49.3]} 10... c6 {[%clk 0:04:16]} 11.
dxc6 {[%clk 0:04:47.1]} 11... Qxd1+ {[%clk 0:04:09]} 12. Rxd1 {[%clk 0:04:47]}
12... O-O {[%clk 0:04:05.7]} 13. c7 {[%clk 0:04:39.9]} 13... Nc6 {[%clk
0:03:53.3]} 14. O-O {[%clk 0:04:38.8]} 14... Bxc3 {[%clk 0:03:47.7]} 15. bxc3
{[%clk 0:04:37.4]} 15... Na5 {[%clk 0:03:31.5]} 16. Bd6 {[%clk 0:04:35.4]} 16...
a6 {[%clk 0:03:06.6]} 17. Bxf8 {[%clk 0:04:33.9]} 17... axb5 {[%clk 0:03:05.2]}
18. Rd8 {[%clk 0:04:32.9]} 18... Nc6 {[%clk 0:02:54.5]} 19. Be7+ {[%clk
0:04:29.4]} 19... Nxd8 {[%clk 0:02:52.4]} 20. cxd8=Q+ {[%clk 0:04:29.3]} 20...
Ne8 {[%clk 0:02:43.4]} 21. Qxe8# {[%clk 0:04:27.1]} 1-0

[Event "Live Chess"]
[Site "Chess.com"]
[Date "2024.06.01"]
[Round "-"]
[White "SergiiA"]
[Black "dl_chess"]
[Result "1-0"]
[WhiteElo "1552"]
[BlackElo "1163"]
[TimeControl "300"]
[EndTime "10:09:14 PDT"]
[Termination "SergiiA won by resignation"]

1. c4 {[%clk 0:04:58.1]} 1... e5 {[%clk 0:04:53.7]} 2. Nc3 {[%clk 0:04:57.1]}
2... Nc6 {[%clk 0:04:46.4]} 3. g3 {[%clk 0:04:55.5]} 3... Nf6 {[%clk 0:04:43.7]}
4. Bg2 {[%clk 0:04:55]} 4... Bc5 {[%clk 0:04:40.2]} 5. e3 {[%clk 0:04:54.1]}
5... d6 {[%clk 0:04:39.2]} 6. Nge2 {[%clk 0:04:52.6]} 6... O-O {[%clk
0:04:38.2]} 7. O-O {[%clk 0:04:51.4]} 7... Bf5 {[%clk 0:04:35.7]} 8. h3 {[%clk
0:04:49.1]} 8... Qd7 {[%clk 0:04:34]} 9. Kh2 {[%clk 0:04:47.9]} 9... d5 {[%clk
0:04:25.5]} 10. d4 {[%clk 0:04:45.3]} 10... exd4 {[%clk 0:04:23.2]} 11. exd4
{[%clk 0:04:42.6]} 11... Bd6 {[%clk 0:04:22.3]} 12. cxd5 {[%clk 0:04:24.4]}
12... Ne7 {[%clk 0:04:15.9]} 13. Bg5 {[%clk 0:04:19.9]} 13... Rfe8 {[%clk
0:03:48.4]} 14. Bxf6 {[%clk 0:04:15.3]} 14... gxf6 {[%clk 0:03:47.4]} 15. Qd2
{[%clk 0:04:05.2]} 15... Kh8 {[%clk 0:03:45.2]} 16. Rae1 {[%clk 0:03:52]} 16...
Rg8 {[%clk 0:03:43.7]} 17. Nf4 {[%clk 0:03:45.5]} 17... Ng6 {[%clk 0:03:30.9]}
18. Ne4 {[%clk 0:03:39.4]} 18... Nxf4 {[%clk 0:03:12.1]} 19. Nxf6 {[%clk
0:03:30.4]} 19... Qb5 {[%clk 0:02:04.7]} 20. gxf4 {[%clk 0:03:20.3]} 20... Rxg2+
{[%clk 0:01:57.8]} 21. Kxg2 {[%clk 0:03:16.7]} 21... Bb4 {[%clk 0:01:08]} 22.
Qe2 {[%clk 0:03:08.2]} 22... Bxe1 {[%clk 0:01:01.4]} 23. Qxb5 {[%clk 0:03:06.6]}
23... Bxh3+ {[%clk 0:00:50.3]} 24. Kxh3 {[%clk 0:03:04.8]} 1-0

[Event "Live Chess"]
[Site "Chess.com"]
[Date "2024.06.01"]
[Round "-"]
[White "Ferrarifan27"]
[Black "Yarigo"]
[Result "0-1"]
[WhiteElo "2074"]
[BlackElo "2389"]
[TimeControl "300"]
[EndTime "10:09:14 PDT"]
[Termination "Yarigo won by checkmate"]

1. e4 {[%clk 0:04:58.2]} 1... e5 {[%clk 0:04:57.5]} 2. Nf3 {[%clk 0:04:56.6]}
2... Nc6 {[%clk 0:04:55.4]} 3. Bb5 {[%clk 0:04:54.9]} 3... a6 {[%clk 0:04:53.4]}
4. Ba4 {[%clk 0:04:53.4]} 4... Nf6 {[%clk 0:04:51]} 5. O-O {[%clk 0:04:52.2]}
5... Nxe4 {[%clk 0:04:49.5]} 6. d4 {[%clk 0:04:50]} 6... b5 {[%clk 0:04:48]} 7.
Bb3 {[%clk 0:04:47.8]} 7... d5 {[%clk 0:04:47.5]} 8. dxe5 {[%clk 0:04:46]} 8...
Be6 {[%clk 0:04:46.9]} 9. Nbd2 {[%clk 0:04:43.2]} 9... Be7 {[%clk 0:04:44.9]}
10. Nxe4 {[%clk 0:04:40.3]} 10... dxe4 {[%clk 0:04:43.6]} 11. Qxd8+ {[%clk
0:04:38.6]} 11... Rxd8 {[%clk 0:04:40.9]} 12. Ng5 {[%clk 0:04:37.8]} 12... Nxe5
{[%clk 0:03:53.1]} 13. Bxe6 {[%clk 0:04:27.4]} 13... fxe6 {[%clk 0:03:52.4]} 14.
Nxe6 {[%clk 0:04:26.5]} 14... Rd7 {[%clk 0:03:49.5]} 15. Nxg7+ {[%clk
0:04:25.4]} 15... Kf7 {[%clk 0:03:48.4]} 16. Nf5 {[%clk 0:04:23.9]} 16... Bf6
{[%clk 0:03:43.5]} 17. Rb1 {[%clk 0:04:10.3]} 17... c5 {[%clk 0:03:28.1]} 18. b3
{[%clk 0:04:06.4]} 18... c4 {[%clk 0:03:26.6]} 19. Bb2 {[%clk 0:04:02]} 19...
Rd2 {[%clk 0:03:17]} 20. Rfc1 {[%clk 0:03:51.7]} 20... Rc8 {[%clk 0:03:05.4]}
21. Bc3 {[%clk 0:03:44.7]} 21... Rd7 {[%clk 0:02:57.3]} 22. Kf1 {[%clk
0:03:37.8]} 22... cxb3 {[%clk 0:02:38]} 23. cxb3 {[%clk 0:03:33.9]} 23... Nd3
{[%clk 0:02:29.2]} 24. Nh6+ {[%clk 0:03:00.4]} 24... Kg6 {[%clk 0:02:24.6]} 25.
Bxf6 {[%clk 0:02:54.8]} 25... Nxc1 {[%clk 0:02:16.2]} 26. Ng4 {[%clk 0:02:50.1]}
26... Rd1# {[%clk 0:02:12.3]} 0-1

[Event "Live Chess"]
[Site "Chess.com"]
[Date "2024.06.01"]
[Round "-"]
[White "lyricalschemes"]
[Black "blunderabit"]
[Result "1-0"]
[WhiteElo "2195"]
[BlackElo "1814"]
[TimeControl "300"]
[EndTime "10:09:20 PDT"]
[Termination "lyricalschemes won by resignation"]

1. e4 {[%clk 0:04:59.2]} 1... c5 {[%clk 0:04:53.2]} 2. Nf3 {[%clk 0:04:58.2]}
2... d6 {[%clk 0:04:50.9]} 3. Bb5+ {[%clk 0:04:57.4]} 3... Bd7 {[%clk
0:04:43.8]} 4. Bxd7+ {[%clk 0:04:56.1]} 4... Qxd7 {[%clk 0:04:42.6]} 5. O-O
{[%clk 0:04:53.9]} 5... Nc6 {[%clk 0:04:40.3]} 6. Re1 {[%clk 0:04:51.5]} 6... g6
{[%clk 0:04:32.5]} 7. c3 {[%clk 0:04:49.1]} 7... Bg7 {[%clk 0:04:25.7]} 8. d4
{[%clk 0:04:46.5]} 8... Nf6 {[%clk 0:04:16.6]} 9. Bg5 {[%clk 0:04:42.1]} 9...
O-O {[%clk 0:04:12]} 10. Qd2 {[%clk 0:04:38]} 10... b6 {[%clk 0:03:57.2]} 11.
Bh6 {[%clk 0:04:31.3]} 11... Bxh6 {[%clk 0:03:55.1]} 12. Qxh6 {[%clk 0:04:29.5]}
12... Qg4 {[%clk 0:03:50.1]} 13. e5 {[%clk 0:04:25]} 13... dxe5 {[%clk
0:03:45.6]} 14. dxe5 {[%clk 0:04:22.6]} 14... Nd5 {[%clk 0:03:43.5]} 15. Ng5
{[%clk 0:04:18.7]} 15... Qh5 {[%clk 0:03:07.4]} 16. Qxh5 {[%clk 0:04:17]} 16...
gxh5 {[%clk 0:03:05.5]} 17. Na3 {[%clk 0:04:13.3]} 17... Rad8 {[%clk 0:02:58.3]}
18. e6 {[%clk 0:04:09.1]} 18... f6 {[%clk 0:02:43.2]} 19. Nf7 {[%clk 0:04:06.9]}
19... Rc8 {[%clk 0:02:25.4]} 20. Nc4 {[%clk 0:04:03.3]} 20... Nd8 {[%clk
0:02:18.1]} 21. Nh6+ {[%clk 0:04:00.8]} 21... Kh8 {[%clk 0:02:13.4]} 22. Rad1
{[%clk 0:03:59.8]} 22... Nf4 {[%clk 0:02:08.1]} 23. g3 {[%clk 0:03:57.9]} 23...
Nfxe6 {[%clk 0:02:03.5]} 24. Rd7 {[%clk 0:03:51.8]} 24... Rc7 {[%clk 0:01:58.1]}
25. Rxc7 {[%clk 0:03:49.5]} 25... Nxc7 {[%clk 0:01:57.2]} 26. Rxe7 {[%clk
0:03:48.8]} 26... Nde6 {[%clk 0:01:50.5]} 27. Nd6 {[%clk 0:03:39.3]} 27... h4
{[%clk 0:01:33]} 28. f4 {[%clk 0:03:25.5]} 28... h3 {[%clk 0:01:30.2]} 29. f5
{[%clk 0:03:24.1]} 1-0

[Event "Live Chess"]
[Site "Chess.com"]
[Date "2024.06.01"]
[Round "-"]
[White "DukeBG"]
[Black "OliWally08"]
[Result "0-1"]
[WhiteElo "473"]
[BlackElo "1258"]
[TimeControl "300"]
[EndTime "10:09:34 PDT"]
[Termination "OliWally08 won by resignation"]

1. e4 {[%clk 0:04:53.5]} 1... d5 {[%clk 0:04:59.9]} 2. d4 {[%clk 0:04:52.1]}
2... dxe4 {[%clk 0:04:55.8]} 3. d5 {[%clk 0:04:49.8]} 3... Nf6 {[%clk
0:04:54.5]} 4. Bf4 {[%clk 0:04:43.1]} 4... Nxd5 {[%clk 0:04:47.7]} 5. g3 {[%clk
0:04:36.9]} 5... Nxf4 {[%clk 0:04:44.3]} 6. gxf4 {[%clk 0:04:35.4]} 6... Qxd1+
{[%clk 0:04:42.8]} 7. Kxd1 {[%clk 0:04:31.7]} 7... Bg4+ {[%clk 0:04:40.9]} 8.
Be2 {[%clk 0:04:26.5]} 8... Bxe2+ {[%clk 0:04:36.7]} 9. Nxe2 {[%clk 0:04:24]}
9... Nc6 {[%clk 0:04:32.6]} 10. c4 {[%clk 0:04:21.8]} 10... O-O-O+ {[%clk
0:04:31.1]} 11. Nd2 {[%clk 0:04:19.7]} 11... e6 {[%clk 0:04:20.9]} 12. Nc3
{[%clk 0:04:11.7]} 12... f5 {[%clk 0:04:06.5]} 13. Kc2 {[%clk 0:03:56.6]} 13...
Bb4 {[%clk 0:03:48.1]} 14. Rhd1 {[%clk 0:03:17.1]} 14... Bxc3 {[%clk 0:03:36.8]}
15. bxc3 {[%clk 0:03:15.6]} 15... e5 {[%clk 0:03:22.5]} 16. fxe5 {[%clk
0:02:50.5]} 16... Nxe5 {[%clk 0:03:22.4]} 17. c5 {[%clk 0:02:49]} 17... Rd5
{[%clk 0:03:04.7]} 18. Kb3 {[%clk 0:02:31.6]} 18... Rhd8 {[%clk 0:02:55.3]} 19.
Nc4 {[%clk 0:02:22.9]} 19... Rxd1 {[%clk 0:02:47.3]} 20. Rxd1 {[%clk 0:02:18.8]}
20... Rxd1 {[%clk 0:02:40.9]} 21. Nxe5 {[%clk 0:02:16.3]} 21... Rd2 {[%clk
0:02:33.7]} 22. a4 {[%clk 0:01:33.5]} 22... Rxf2 {[%clk 0:02:30.9]} 23. Kb4
{[%clk 0:01:28.8]} 23... e3 {[%clk 0:02:29.6]} 24. Nd3 {[%clk 0:01:18.5]} 24...
Rxh2 {[%clk 0:02:23.8]} 0-1